bitfinex/quotes_ETHUSD_20240910
["timestamp","ask_amount","ask_price","bid_price","bid_amount"]
[1725984501188,6.20857722,2333.0,2332.9,0.0236248]
[1725984501341,10.83271915,2333.0,2332.9,0.0236248]
[1725984501546,10.83271915,2333.0,2332.5,0.0236248]
[1725984501547,2.2672,2332.9,2332.5,0.0236248]
[1725984501747,8.17768685,2332.6,2332.5,0.0236248]
[1725984502050,12.27258727,2332.6,2332.5,0.0236248]
[1725984502245,15.27258727,2332.6,2332.5,0.0236248]
[1725984502484,15.82129453,2332.6,2332.5,0.0236248]
[1725984502662,15.82130893,2332.6,2332.5,0.0236248]
[1725984503001,15.81943936,2332.6,2332.5,0.0236248]
[1725984503160,11.6865036,2332.6,2332.5,0.0236248]
[1725984503361,11.24177625,2332.6,2332.5,0.0236248]
[1725984503763,9.46583354,2332.6,2332.5,0.0236248]
[1725984503953,11.6865036,2332.6,2332.5,0.0236248]
[1725984504386,11.24115248,2332.6,2332.5,0.0236248]
[1725984505570,9.22213518,2332.6,2332.5,0.0236248]
[1725984506498,9.11493192,2332.6,2332.5,0.0236248]
[1725984506714,2.4053,2332.5,2332.0,0.0236248]
[1725984506866,3.73587225,2332.1,2332.0,0.0236248]
[1725984507065,6.2524606,2332.1,2332.0,0.0236248]
[1725984507363,6.25122905,2332.1,2332.0,0.0236248]
[1725984507595,6.25044484,2332.1,2332.0,0.0236248]
[1725984508462,5.80667273,2332.1,2332.0,0.0236248]
[1725984508667,6.35768069,2332.1,2332.0,0.0236248]
[1725984509184,5.02789265,2332.1,2332.0,0.0236248]
[1725984509624,5.9134837,2332.1,2332.0,0.0236248]
[1725984510411,3.84867857,2332.1,2332.0,0.0236248]
[1725984510581,3.06253585,2332.1,2332.0,0.0236248]
[1725984512309,0.10723585,2332.1,2332.0,0.0236248]
[1725984512509,0.107226,2332.3,2332.0,0.0236248]
[1725984512717,0.107226,2332.2,2332.0,0.0236248]
[1725984513070,2.2646,2332.1,2332.0,0.0236248]
[1725984513270,2.8146,2332.1,2332.0,0.0236248]
[1725984516238,0.55,2332.1,2332.0,0.0236248]
[1725984520357,0.107226,2332.2,2332.0,0.0236248]
[1725984520511,0.10720986,2332.5,2332.0,0.0236248]
[1725984523833,0.10720986,2332.5,2332.1,2.3131]
[1725984524475,0.10720288,2332.6,2332.1,2.54677248]
[1725984525468,0.10718977,2332.8,2332.1,2.54677248]
[1725984525825,7.28,2332.9,2332.0,0.0236248]
[1725984525826,2.2975,2332.6,2332.0,0.0236248]
[1725984526034,0.10720722,2332.5,2332.0,0.0236248]
[1725984526265,4.24348986,2332.5,2332.0,0.0236248]
[1725984526670,0.10720722,2332.5,2332.0,0.0236248]
[1725984527547,3.10719999,2332.8,2332.1,2.2597]
[1725984527731,0.10720035,2332.7,2332.1,2.2597]
[1725984528078,0.10720035,2332.7,2332.0,0.0236248]
[1725984528079,2.2747,2332.5,2332.0,0.0236248]
[1725984528265,0.10721437,2332.4,2332.0,0.0236248]
[1725984529081,0.10720333,2332.7,2332.1,2.301]
[1725984529285,0.10720333,2332.7,2332.2,0.23246248]
[1725984529443,0.10720333,2332.7,2332.1,2.301]
[1725984532201,0.10720333,2332.7,2332.1,2.259]
[1725984532401,7.28,2332.9,2332.1,2.259]
[1725984532402,0.10718642,2332.8,2332.1,2.259]
[1725984533945,0.10718642,2332.8,2332.1,2.33590917]
[1725984534286,0.10718642,2332.8,2332.2,0.2359534]
[1725984535355,0.10718642,2332.8,2332.3,2.38560996]
[1725984538724,0.10717892,2332.9,2332.3,2.38560996]
[1725984541616,0.10717891,2333.0,2332.3,2.38560996]
[1725984541787,0.10717891,2333.0,2332.4,0.26215634]
[1725984542116,0.10717891,2333.0,2332.4,2.45367018]
[1725984542327,8.16559105,2333.2,2332.4,7.45367018]
[1725984542618,0.88559105,2333.4,2332.8,2.2546]
[1725984542926,8.16559105,2333.6,2333.0,2.2546]
[1725984543074,7.3871381,2333.6,2333.1,0.07679397]
[1725984543276,8.27272915,2333.6,2333.1,0.36016151]
[1725984543475,7.3871381,2333.6,2333.1,0.36016151]
[1725984543672,0.99272924,2333.7,2333.1,0.36016151]
[1725984543871,0.99272924,2333.7,2333.1,0.30836536]
[1725984544112,0.10713819,2333.7,2332.9,0.42546]
[1725984544276,0.10713819,2333.7,2332.9,3.42546]
[1725984544277,0.88559105,2333.6,2332.9,3.42546]
[1725984544484,0.10715468,2333.5,2333.0,0.58196783]
[1725984544719,0.10715468,2333.5,2332.9,0.42546]
[1725984544720,2.3258,2333.4,2332.9,0.42546]
[1725984544879,0.10715508,2333.3,2332.9,0.42546]
[1725984545079,0.10715508,2333.3,2332.5,3.0]
[1725984545388,0.10715508,2333.3,2332.4,2.51686235]
[1725984545389,0.88559105,2333.2,2332.4,2.51686235]
[1725984545576,0.10717312,2333.1,2332.5,0.25168623]
[1725984545781,0.10717312,2333.1,2332.4,2.51686235]
[1725984545995,0.10717312,2333.1,2332.1,4.3918]
[1725984545996,2.2704,2333.0,2332.1,4.3918]
[1725984546200,2.96216119,2332.9,2332.1,2.3918]
[1725984546421,0.99277339,2332.9,2332.1,2.3918]
[1725984546793,0.78782833,2332.8,2332.1,2.3918]
[1725984546995,0.10718453,2332.7,2332.1,2.63334248]
[1725984547931,0.10718656,2332.8,2332.1,2.63334248]
[1725984548242,0.10718656,2332.8,2332.0,0.0236248]
[1725984548410,0.99278781,2332.7,2332.0,0.0236248]
[1725984548613,0.78777811,2332.6,2332.0,0.0236248]
[1725984548914,0.10720175,2332.5,2332.0,0.0236248]
[1725984549310,0.10720175,2332.5,2332.0,0.27191728]
[1725984549697,0.10720035,2332.7,2332.0,0.27191728]
[1725984549897,0.10720035,2332.7,2332.0,3.27191728]
[1725984550102,0.10720035,2332.7,2332.0,3.29703868]
[1725984550439,0.10720035,2332.7,2332.1,4.91029255]
[1725984550940,0.1071866,2332.8,2332.1,4.91029255]
[1725984551146,0.1071866,2332.8,2332.0,0.0236248]
[1725984551147,2.3198,2332.6,2332.0,0.0236248]
[1725984551449,2.96185787,2332.5,2332.0,0.0236248]
[1725984551649,0.99280123,2332.5,2332.0,0.0236248]
[1725984552136,0.10721018,2332.5,2332.0,0.0236248]
[1725984552440,1.78041614,2332.5,2332.0,0.0236248]
[1725984552600,0.78759186,2332.4,2332.0,0.0236248]
[1725984552937,0.10721148,2332.3,2332.0,0.0236248]
[1725984554154,2.96245563,2332.3,2332.0,0.0236248]
[1725984554365,0.99280793,2332.2,2332.0,0.0236248]
[1725984554567,3.17529105,2332.1,2332.0,0.0236248]
[1725984554728,3.07756124,2332.1,2332.0,0.0236248]
[1725984554934,5.14493012,2332.1,2332.0,0.0236248]
[1725984555151,5.58912711,2332.1,2332.0,0.0236248]
[1725984556058,9.14078655,2332.1,2332.0,0.0236248]
[1725984556261,9.38501032,2332.1,2332.0,0.0236248]
[1725984556471,11.15908177,2332.1,2332.0,0.0236248]
[1725984556650,9.14084821,2332.1,2332.0,0.0236248]
[1725984556853,8.14702722,2332.1,2332.0,0.0236248]
[1725984557052,8.2542503,2332.1,2332.0,0.0236248]
[1725984557428,5.2542503,2332.1,2332.0,0.0236248]
[1725984558733,0.10722308,2332.1,2332.0,0.0236248]
[1725984558946,0.10720388,2332.2,2332.0,0.00964618]
[1725984559719,0.88768815,2332.4,2332.0,0.00964618]
[1725984559720,0.10720379,2332.4,2332.0,0.00964618]
[1725984559920,0.10720379,2332.4,2332.0,2.35954618]
[1725984560468,0.10720379,2332.4,2332.1,0.23595462]
[1725984560839,0.10719845,2332.5,2332.1,0.23595462]
[1725984561568,0.9948866,2332.5,2332.1,0.23595462]
[1725984561936,0.88768815,2332.5,2332.1,0.23595462]
[1725984562140,0.10719485,2332.4,2332.1,0.23595462]
[1725984562559,0.88768815,2332.5,2332.1,0.23595462]
[1725984562560,0.99488669,2332.5,2332.1,0.23595462]
[1725984563084,0.88768815,2332.6,2332.1,0.26107992]
[1725984563367,0.10718144,2332.7,2332.1,3.26107992]
[1725984563565,0.99487709,2332.7,2332.2,0.56206261]
[1725984563780,0.78885923,2332.6,2332.2,0.56206261]
[1725984563942,0.99487709,2332.7,2332.2,0.56206261]
[1725984564152,0.99487709,2332.7,2332.3,0.37980172]
[1725984564670,0.10718894,2332.7,2332.3,0.40490496]
[1725984565574,0.99487709,2332.7,2332.3,0.40490496]
[1725984565940,0.88768815,2332.7,2332.4,2.4721]
[1725984566140,0.88768815,2332.8,2332.5,0.2877005]
[1725984566337,2.86086242,2332.8,2332.5,0.2877005]
[1725984566544,0.78931194,2332.7,2332.5,0.2877005]
[1725984566743,0.88768815,2332.8,2332.5,0.31278652]
[1725984567046,2.86097706,2332.8,2332.5,0.31278652]
[1725984567265,0.88768815,2332.8,2332.5,0.31278652]
[1725984567633,1.43868816,2332.9,2332.5,3.31278652]
[1725984567634,0.99486717,2332.9,2332.5,3.31278652]
[1725984567867,0.99486717,2332.9,2332.6,0.57848865]
[1725984569336,0.789264,2332.8,2332.5,3.2877005]
[1725984569536,0.10717004,2332.7,2332.4,2.4721]
[1725984569751,0.99485819,2332.7,2332.4,2.4721]
[1725984570770,0.10718462,2332.6,2332.4,2.4721]
[1725984571079,0.9948728,2332.7,2332.4,2.4721]
[1725984571938,0.9948728,2332.7,2332.2,2.461]
[1725984572139,0.78920868,2332.6,2332.2,2.76447455]
[1725984572353,0.9948728,2332.7,2332.2,2.76447455]
[1725984572555,0.88768815,2332.6,2332.0,0.00964618]
[1725984572782,0.1071849,2332.5,2332.0,0.00964618]
[1725984572972,0.1071849,2332.5,2332.0,3.00964618]
[1725984573486,0.88768815,2332.4,2332.0,3.00964618]
[1725984573686,2.22789206,2332.6,2332.0,0.00964618]
[1725984573687,0.99488929,2332.3,2332.0,0.00964618]
[1725984573856,0.10720106,2332.2,2332.0,0.00964618]
[1725984574546,3.22568815,2332.1,2332.0,0.00964618]
[1725984574752,5.64178015,2332.1,2332.0,0.00964618]
[1725984576162,7.66186253,2332.1,2332.0,0.00964618]
[1725984576361,7.76909502,2332.1,2332.0,0.00964618]
[1725984577310,8.76699409,2332.1,2332.0,0.00964618]
[1725984577460,11.76699409,2332.1,2332.0,0.00964618]
[1725984579525,11.31998205,2332.1,2332.0,0.00964618]
[1725984579854,10.76998205,2332.1,2332.0,0.00964618]
[1725984580019,10.76797427,2332.1,2332.0,0.00964618]
[1725984580230,8.99302513,2332.1,2332.0,0.00964618]
[1725984580376,8.74880004,2332.1,2332.0,0.00964618]
[1725984580712,10.7678837,2332.1,2332.0,0.00964618]
[1725984580939,11.3178837,2332.1,2332.0,0.00964618]
[1725984582020,9.54290033,2332.1,2331.5,0.0236248]
[1725984582335,0.88720517,2331.8,2331.5,0.0236248]
[1725984582489,2.42044511,2331.7,2331.5,0.0236248]
[1725984583988,3.30765028,2331.7,2331.5,0.0236248]
[1725984584297,2.42044511,2331.7,2331.5,0.0236248]
[1725984584919,7.5404755,2331.6,2331.5,0.0236248]
[1725984585074,7.64773756,2331.6,2331.5,0.0236248]
[1725984585420,9.97739289,2331.6,2331.5,0.0236248]
[1725984585629,7.91259852,2331.6,2331.5,0.0236248]
[1725984585977,9.97715066,2331.6,2331.5,0.0236248]
[1725984586177,12.97643907,2331.6,2331.5,0.0236248]
[1725984586791,10.91259852,2331.6,2331.5,0.0236248]
[1725984587139,12.97590215,2331.6,2331.5,0.0236248]
[1725984587501,5.98766206,2331.6,2331.5,0.0236248]
[1725984587691,6.77261457,2331.6,2331.5,0.0236248]
[1725984588077,5.98766206,2331.6,2331.5,0.0236248]
[1725984588279,5.43766206,2331.6,2331.5,0.0236248]
[1725984588682,2.43766206,2331.6,2331.5,0.0236248]
[1725984588884,5.43766206,2331.6,2331.5,0.0236248]
[1725984589623,3.10726206,2331.6,2331.5,0.0236248]
[1725984589780,0.10726206,2331.6,2331.5,0.0236248]
[1725984591961,0.10723705,2331.8,2331.5,0.0236248]
[1725984592645,0.10724908,2331.7,2331.5,0.0236248]
[1725984601475,0.10724316,2331.8,2331.5,0.0236248]
[1725984602518,2.4142,2331.7,2331.5,0.0236248]
[1725984602687,0.10724819,2331.6,2331.5,0.0236248]
[1725984603782,0.10724598,2331.8,2331.5,0.0236248]
[1725984605182,2.96019459,2331.8,2331.5,0.0236248]
[1725984605386,0.10724589,2331.7,2331.5,0.0236248]
[1725984606039,0.55,2331.6,2331.5,0.0236248]
[1725984606385,3.9929948,2331.7,2331.5,0.0236248]
[1725984606593,3.10724589,2331.7,2331.5,0.0236248]
[1725984606881,3.9929948,2331.7,2331.5,0.0236248]
[1725984607597,3.10724589,2331.7,2331.5,0.0236248]
[1725984607949,3.9929948,2331.7,2331.5,0.0236248]
[1725984609288,9.8595109,2331.6,2331.5,0.0236248]
[1725984609496,13.30456975,2331.6,2331.5,0.0236248]
[1725984609783,12.85788728,2331.6,2331.5,0.0236248]
[1725984610195,8.71855848,2331.6,2331.5,0.0236248]
[1725984610608,8.71857897,2331.6,2331.5,0.0236248]
[1725984611103,3.0,2331.6,2331.5,0.0236248]
[1725984611406,0.10724469,2331.6,2331.5,0.0236248]
[1725984612808,4.77442302,2331.9,2331.5,2.3155248]
[1725984612809,0.99136603,2331.9,2331.5,2.3155248]
[1725984612951,0.10724074,2331.9,2331.6,0.23155248]
[1725984613595,0.89482222,2331.9,2331.6,0.23155248]
[1725984613802,0.10724074,2331.9,2331.6,0.23155248]
[1725984614380,0.99136603,2331.9,2331.5,2.3155248]
[1725984614577,0.88412529,2331.8,2331.5,0.0236248]
[1725984614777,0.88412529,2331.6,2331.5,0.0236248]
[1725984614976,6.15597768,2331.6,2331.5,0.0236248]
[1725984615211,8.27664293,2331.6,2331.5,0.0236248]
[1725984615511,8.27664293,2331.6,2331.0,0.0236248]
[1725984615512,9.50218074,2331.6,2331.0,0.0236248]
[1725984615722,0.88595444,2331.1,2331.0,0.0236248]
[1725984616024,2.95976304,2331.1,2331.0,0.0236248]
[1725984617182,2.96005433,2331.1,2331.0,0.0236248]
[1725984617680,2.9602975,2331.1,2331.0,0.0236248]
[1725984618266,0.89388791,2331.1,2331.0,0.0236248]
[1725984618516,2.96916755,2331.1,2331.0,0.0236248]
[1725984619014,3.41164105,2331.1,2331.0,0.0236248]
[1725984619668,3.41797579,2331.1,2331.0,0.0236248]
[1725984621610,3.86096326,2331.1,2331.0,0.0236248]
[1725984621812,5.44633094,2331.1,2331.0,0.0236248]
[1725984622369,5.89288659,2331.1,2331.0,0.0236248]
[1725984622614,3.67438107,2331.1,2331.0,0.0236248]
[1725984623332,11.65232743,2331.1,2331.0,0.0236248]
[1725984624110,14.75823516,2331.1,2331.0,0.0236248]
[1725984624334,19.04805516,2331.1,2331.0,0.0236248]
[1725984624625,2.4255,2331.0,2330.6,0.0236248]
[1725984624916,6.4875288,2330.7,2330.6,0.0236248]
[1725984625126,15.34358658,2330.7,2330.6,0.0236248]
[1725984625272,18.34175177,2330.7,2330.6,0.0236248]
[1725984625472,18.78648968,2330.7,2330.6,0.0236248]
[1725984626274,15.68616799,2330.7,2330.6,0.0236248]
[1725984626589,18.33898104,2330.7,2330.6,0.0236248]
[1725984626782,18.33907236,2330.7,2330.6,0.0236248]
[1725984627417,13.70844609,2330.7,2330.6,0.0236248]
[1725984628570,15.91710487,2330.7,2330.6,0.0236248]
[1725984628977,15.91191772,2330.7,2330.6,0.0236248]
[1725984629180,13.12201896,2330.7,2330.6,0.0236248]
[1725984629984,13.12130662,2330.7,2330.6,0.0236248]
[1725984630200,11.09365357,2330.7,2330.6,0.0236248]
[1725984630389,3.95432477,2330.7,2330.6,0.0236248]
[1725984630589,2.96259708,2330.7,2330.6,0.0236248]
[1725984631492,0.89617612,2330.7,2330.6,0.0236248]
[1725984631928,1.45034794,2330.7,2330.6,0.0236248]
[1725984632279,1.45018107,2330.7,2330.6,0.0236248]
[1725984632729,7.6618389,2330.7,2330.6,0.0236248]
[1725984633100,5.58950987,2330.7,2330.6,0.0236248]
[1725984633320,0.65731089,2330.7,2330.6,0.0236248]
[1725984633625,0.89994675,2330.7,2330.6,0.0236248]
[1725984633840,0.10731089,2330.7,2330.6,0.0236248]
[1725984634387,0.10727909,2330.9,2330.6,0.0236248]
[1725984634808,0.10727909,2330.9,2330.6,0.26015728]
[1725984635099,0.10726575,2331.0,2330.7,2.4285]
[1725984635315,0.10726174,2331.2,2330.9,2.4285]
[1725984635829,0.88312311,2331.5,2330.9,2.4285]
[1725984635999,0.10725307,2331.5,2331.1,2.4285]
[1725984636208,0.10725307,2331.5,2330.7,2.4285]
[1725984636410,0.10725307,2331.5,2330.7,2.97371248]
[1725984636411,2.87737046,2331.4,2330.7,2.97371248]
[1725984636626,0.10725946,2331.3,2330.7,2.97371248]
[1725984639843,0.10725873,2331.4,2330.8,2.4427]
[1725984639998,0.10725873,2331.4,2330.9,2.94401799]
[1725984640343,0.10725873,2331.4,2330.9,2.4427]
[1725984640550,0.10724905,2331.5,2331.1,2.4222]
[1725984640847,0.10724159,2331.6,2331.3,2.4222]
[1725984641144,0.10723366,2331.7,2331.4,0.72176817]
[1725984641348,0.10722822,2331.9,2331.4,0.72176817]
[1725984641513,0.10722822,2331.9,2331.5,2.3802]
[1725984642046,0.10722822,2331.9,2331.5,2.69039682]
[1725984643364,0.10722595,2332.1,2331.5,2.69039682]
[1725984643923,0.10722595,2332.1,2331.5,2.71557836]
[1725984644120,0.10721397,2332.2,2331.6,4.1393288]
[1725984644333,0.10721397,2332.2,2331.7,2.4979]
[1725984644620,0.10721397,2332.2,2331.7,2.52306445]
[1725984644852,0.10721397,2332.2,2331.9,2.4979]
[1725984645118,0.10720613,2332.4,2331.9,3.16413933]
[1725984645762,0.0236248,2332.5,2332.1,2.4998]
[1725984646059,0.0236248,2332.5,2331.6,0.88549072]
[1725984646060,0.10720612,2332.4,2331.6,7.02481952]
[1725984646265,0.10720612,2332.4,2331.8,2.3374]
[1725984650921,0.10720612,2332.4,2331.8,6.4767288]
[1725984651172,0.10720612,2332.4,2331.8,4.1393288]
[1725984651393,0.13083296,2332.5,2331.9,2.3829]
[1725984651573,0.13083296,2332.5,2332.0,0.65222288]
[1725984652369,0.0236248,2332.5,2332.0,0.65222288]
[1725984654970,0.0236248,2332.5,2331.9,2.3829]
[1725984655782,0.0236248,2332.5,2332.0,6.16446389]
[1725984656081,0.0236248,2332.5,2332.2,4.1393288]
[1725984657135,0.0236248,2332.5,2332.1,2.32831076]
[1725984659860,0.0236248,2332.5,2332.3,2.256]
[1725984660060,0.0236248,2332.5,2332.4,0.63953288]
[1725984660502,0.0236248,2332.5,2332.4,4.77886168]
[1725984660804,0.0236248,2332.5,2332.4,7.05994159]
[1725984661462,0.0236248,2332.5,2332.4,10.05994159]
[1725984662561,0.0236248,2332.5,2332.4,10.53325595]
[1725984663305,0.0236248,2332.5,2332.4,10.05994159]
[1725984663813,0.0236248,2332.5,2332.4,10.53325595]
[1725984663961,0.0236248,2332.5,2332.4,11.08325595]
[1725984664684,0.0236248,2332.5,2332.4,10.60994159]
[1725984666355,0.0236248,2332.5,2332.4,45.60994159]
[1725984666959,0.0236248,2332.5,2332.4,46.08325595]
[1725984668109,0.0236248,2332.5,2332.4,10.58486168]
[1725984669706,0.0236248,2332.9,2332.4,10.58486168]
[1725984669707,0.0236248,2332.9,2332.8,4.3442]
[1725984670009,0.0236248,2332.9,2332.8,11.4835288]
[1725984672637,0.0236248,2332.9,2332.8,7.3442]
[1725984673012,0.0236248,2332.9,2332.8,7.36920739]
[1725984673219,0.0236248,2332.9,2332.8,7.3442]
[1725984673519,0.0236248,2332.9,2332.8,8.51757692]
[1725984673728,0.0236248,2332.9,2332.8,8.49255288]
[1725984673885,0.0236248,2332.9,2332.8,8.5175752]
[1725984674401,0.0236248,2332.9,2332.8,6.1733752]
[1725984675234,0.0236248,2332.9,2332.8,8.6022752]
[1725984678574,0.0236248,2332.9,2332.8,9.1522752]
[1725984678776,0.0236248,2332.9,2332.8,13.76491836]
[1725984679241,0.0236248,2332.9,2332.8,44.60033026]
[1725984679421,0.0236248,2332.9,2332.8,44.1522752]
[1725984679621,0.0236248,2332.9,2332.8,48.291604]
[1725984680024,0.0236248,2332.9,2332.8,48.76491836]
[1725984680722,0.0236248,2332.9,2332.8,49.2129799]
[1725984681685,0.0236248,2333.4,2333.3,4.4495]
[1725984681824,0.0236248,2333.4,2333.3,11.5888288]
[1725984682221,0.0236248,2333.4,2333.3,7.4495]
[1725984682422,0.0236248,2333.4,2333.3,11.5888288]
[1725984683661,0.0236248,2333.4,2333.3,12.1388288]
[1725984683828,0.0236248,2333.4,2333.3,13.40004312]
[1725984688877,0.0236248,2333.4,2333.3,13.64647224]
[1725984690094,0.0236248,2333.4,2333.3,13.40004312]
[1725984690420,0.0236248,2333.4,2333.3,12.85004312]
[1725984691070,0.0236248,2333.4,2333.3,10.40054312]
[1725984697988,0.0236248,2333.4,2333.3,12.79904312]
[1725984698166,0.0236248,2333.4,2333.3,10.40054312]
[1725984705950,0.0236248,2333.4,2333.3,2.0]
[1725984706155,2.3350248,2333.4,2333.3,2.0]
[1725984706638,2.3350248,2333.4,2332.8,0.02499776]
[1725984706841,2.41855429,2333.3,2332.8,0.02499776]
[1725984707155,3.3016774,2333.3,2332.8,0.02499776]
[1725984707361,2.41855429,2333.3,2332.8,0.02499776]
[1725984707746,2.3114,2333.3,2333.0,2.0]
[1725984708281,2.3114,2333.3,2333.0,2.02500977]
[1725984709251,0.0236248,2333.4,2333.1,4.1393288]
[1725984709541,0.0236248,2333.4,2333.3,4.1393288]
[1725984709764,0.0236248,2333.4,2333.3,4.16431581]
[1725984710090,0.0236248,2333.4,2333.3,0.02498701]
[1725984710238,0.0236248,2333.4,2333.2,3.02498718]
[1725984710884,0.0236248,2333.4,2333.2,3.94141638]
[1725984711039,0.0236248,2333.4,2333.3,6.16431601]
[1725984711239,0.0236248,2333.4,2333.3,9.16431601]
[1725984713253,0.0236248,2333.4,2333.3,9.83499375]
[1725984713493,0.0236248,2333.4,2333.3,9.16431601]
[1725984714379,0.0236248,2333.4,2333.3,9.83499375]
[1725984714551,0.0236248,2333.4,2333.3,10.14781539]
[1725984714754,2.5126248,2333.4,2333.3,6.00848659]
[1725984715071,2.5126248,2333.4,2333.3,5.0]
[1725984715989,2.5126248,2333.4,2333.3,2.0]
[1725984716847,2.5126248,2333.4,2333.2,3.0]
[1725984717043,2.5126248,2333.4,2333.0,0.67053247]
[1725984717283,2.5126248,2333.4,2332.7,6.1393288]
[1725984717284,2.4785,2333.2,2332.8,0.69556067]
[1725984718292,2.4785,2333.2,2332.8,0.0250282]
[1725984718473,2.4785,2333.2,2332.8,3.0250282]
[1725984719297,2.4785,2333.2,2332.8,3.0]
[1725984719588,2.4785,2333.0,2332.6,0.67071453]
[1725984719767,2.4785,2333.0,2332.7,0.02505135]
[1725984720092,2.4785,2333.0,2332.5,13.64097621]
[1725984720695,2.38976042,2332.9,2332.4,2.0]
[1725984720852,2.38976042,2332.9,2332.0,8.36820227]
[1725984720853,2.38976042,2332.9,2332.1,6.16441926]
[1725984721053,2.38976042,2332.9,2332.1,8.42331453]
[1725984721286,2.38976042,2332.9,2332.2,0.67090278]
[1725984721897,2.38976042,2332.9,2332.1,6.16441926]
[1725984722081,2.38976042,2332.9,2332.1,2.0]
[1725984722389,4.1393288,2332.7,2332.0,0.89820227]
[1725984722550,2.47790425,2332.6,2332.0,0.89820227]
[1725984724901,2.47790425,2332.6,2331.7,2.24550569]
[1725984724902,2.2609,2332.4,2331.5,0.0236248]
[1725984725101,2.4811,2332.2,2331.5,0.0236248]
[1725984725338,0.10722182,2332.3,2331.5,0.0236248]
[1725984725339,2.58832182,2332.1,2331.5,0.0236248]
[1725984726315,0.10722178,2332.0,2331.5,0.0236248]
[1725984726625,2.3957,2331.9,2331.5,0.0236248]
[1725984726856,0.10722175,2331.8,2331.5,0.0236248]
[1725984727019,2.3957,2331.9,2331.5,0.0236248]
[1725984727215,2.3957,2331.9,2331.5,4.92471584]
[1725984728027,2.3957,2331.9,2331.5,6.94990382]
[1725984729216,0.10722171,2332.2,2331.7,4.1393288]
[1725984729217,2.42592171,2332.2,2331.7,4.1393288]
[1725984729418,2.3187,2332.2,2331.8,0.73909499]
[1725984729962,2.3187,2332.2,2331.8,2.73909499]
[1725984730267,2.3187,2332.2,2331.9,4.1393288]
[1725984730419,2.3187,2332.2,2332.0,0.68784238]
[1725984730850,2.3187,2332.2,2331.9,0.02513633]
[1725984731962,2.3187,2332.2,2331.9,4.16446513]
[1725984734880,2.3187,2332.2,2331.9,0.02513633]
[1725984735386,2.3187,2332.2,2331.8,2.0]
[1725984735672,0.10720362,2332.1,2331.8,2.0]
[1725984735989,0.10720362,2332.1,2331.6,0.02515712]
[1725984736275,2.424,2332.0,2331.5,0.0236248]
[1725984736476,0.10722276,2331.9,2331.5,0.0236248]
[1725984737089,2.375,2331.8,2331.5,0.0236248]
[1725984737257,2.375,2331.6,2331.5,0.0236248]
[1725984743908,2.925,2331.6,2331.5,0.0236248]
[1725984745411,5.925,2331.6,2331.5,0.0236248]
[1725984745568,6.03226278,2331.6,2331.5,0.0236248]
[1725984748906,5.48226278,2331.6,2331.5,0.0236248]
[1725984749111,2.375,2331.6,2331.5,0.0236248]
[1725984749313,2.4822467,2331.6,2331.5,0.0236248]
[1725984749682,3.1072467,2331.6,2331.0,0.0236248]
[1725984749880,2.3193,2331.3,2331.0,0.0236248]
[1725984750081,2.3193,2331.1,2331.0,0.0236248]
[1725984756812,0.10726255,2331.5,2331.0,0.0236248]
[1725984756813,2.2951,2331.4,2331.0,0.0236248]
[1725984757067,2.40235024,2331.4,2331.0,0.0236248]
[1725984757668,0.10724651,2331.6,2331.0,0.0236248]
[1725984757869,0.10724651,2331.6,2331.0,0.66768179]
[1725984758025,0.10724651,2331.6,2331.0,0.04886154]
[1725984759376,0.10724651,2331.6,2331.1,2.3247]
[1725984759929,0.10724651,2331.6,2331.0,0.04886154]
[1725984760370,2.3623,2331.5,2331.0,0.0236248]
[1725984760540,0.10724627,2331.4,2331.0,0.0236248]
[1725984763293,2.3623,2331.5,2331.0,0.0236248]
[1725984763573,0.10724165,2331.4,2331.0,0.0236248]
[1725984763740,2.3623,2331.5,2331.0,0.0236248]
[1725984764739,2.40614165,2331.7,2331.0,2.5144248]
[1725984765173,2.40614165,2331.7,2331.1,0.45144248]
[1725984766173,0.10724165,2331.7,2331.1,0.45144248]
[1725984767086,2.2989,2331.6,2331.1,0.45144248]
[1725984767376,0.10724025,2331.5,2331.0,0.0236248]
[1725984768582,2.2989,2331.4,2331.0,0.0236248]
[1725984768793,0.10725581,2331.3,2331.0,0.0236248]
[1725984769737,2.40615555,2331.4,2331.0,0.0236248]
[1725984770019,0.10725555,2331.4,2331.0,0.0236248]
[1725984770724,2.2989,2331.6,2331.0,0.0236248]
[1725984770725,0.10724496,2331.5,2331.0,0.27759217]
[1725984771023,0.10724496,2331.5,2331.0,0.0236248]
[1725984772522,0.10724496,2331.5,2331.0,2.3544248]
[1725984774942,7.3388755,2331.4,2331.0,0.0236248]
[1725984775142,0.10726088,2331.3,2331.0,0.0236248]
[1725984775293,1.99854279,2331.3,2331.0,0.0236248]
[1725984775493,4.24659359,2331.2,2331.0,0.0236248]
[1725984775701,3.07614254,2331.1,2331.0,0.0236248]
[1725984776052,3.18343901,2331.1,2331.0,0.0236248]
[1725984776403,2.42706994,2331.1,2331.0,0.0236248]
[1725984776634,4.44136039,2331.1,2331.0,0.0236248]
[1725984776799,6.18759625,2331.1,2331.0,0.0236248]
[1725984776999,10.70459625,2331.1,2331.0,0.0236248]
[1725984777199,8.14016361,2331.1,2331.0,0.0236248]
[1725984777437,6.3806702,2331.1,2331.0,0.0236248]
[1725984777737,8.14016361,2331.1,2331.0,0.0236248]
[1725984777926,5.6432178,2331.1,2331.0,0.0236248]
[1725984778131,5.64316073,2331.1,2331.0,0.0236248]
[1725984778458,3.18340961,2331.1,2331.0,0.0236248]
[1725984778642,5.20149934,2331.1,2331.0,0.0236248]
[1725984779164,5.64333512,2331.1,2331.0,0.0236248]
[1725984779449,8.14031846,2331.1,2331.0,0.0236248]
[1725984780422,6.19366659,2331.1,2331.0,0.0236248]
[1725984780637,8.14071866,2331.1,2331.0,0.0236248]
[1725984780860,8.58979479,2331.1,2331.0,0.0236248]
[1725984781155,6.38122525,2331.1,2331.0,0.0236248]
[1725984781460,8.15062831,2331.1,2331.0,0.0236248]
[1725984781619,8.59248223,2331.1,2331.0,0.0236248]
[1725984781817,6.3823704,2331.1,2331.0,0.0236248]
[1725984782042,6.3823704,2331.1,2330.6,0.0236248]
[1725984782043,2.47,2331.0,2330.6,0.0236248]
[1725984782247,3.79637296,2330.7,2330.6,0.0236248]
[1725984782433,6.34583245,2330.7,2330.6,0.0236248]
[1725984782769,6.34579623,2330.7,2330.6,0.0236248]
[1725984783527,5.79579623,2330.7,2330.6,0.0236248]
[1725984783677,0.9914745,2330.8,2330.6,0.0236248]
[1725984783886,0.10729342,2330.8,2330.6,0.0236248]
[1725984784665,0.1072705,2330.9,2330.6,0.0236248]
[1725984784879,0.9914492,2331.0,2330.6,0.0236248]
[1725984785068,0.88418108,2331.0,2330.6,0.0236248]
[1725984785837,0.10726031,2330.9,2330.6,0.0236248]
[1725984786042,2.87492209,2330.9,2330.6,0.0236248]
[1725984786243,0.10726031,2330.9,2330.6,0.0236248]
[1725984786776,0.99145141,2331.0,2330.6,0.0236248]
[1725984786987,1.32633674,2331.1,2330.7,2.3397]
[1725984786988,0.88418108,2331.1,2330.7,2.3397]